fUSD/lending_fUSD_20250206
["ID","MTS","AMOUNT","RATE_DAILY","PERIOD"]
[351951327,1738859449959,-500.0,0.00019315,3]
[351951328,1738859449969,-666.67,0.00019315,3]
[351951329,1738859449979,-500.0,0.00019315,3]
[351951330,1738859449989,-500.0,0.00019315,3]
[351951331,1738859449999,-500.0,0.00019315,3]
[351951332,1738859450009,-989.31,0.00019315,3]
[351951333,1738859450019,-500.0,0.00019315,3]
[351951334,1738859450029,-500.0,0.00019315,3]
[351951335,1738859450038,-640.9,0.00019315,3]
[351951336,1738859450048,-500.0,0.00019315,3]
[351951337,1738859450058,-500.0,0.00019315,3]
[351951338,1738859450068,-500.0,0.00019315,3]
[351951339,1738859450079,-1149.63,0.00019315,3]
[351951340,1738859450089,-500.0,0.00019315,3]
[351951341,1738859450099,-588.64,0.00019315,3]
[351951342,1738859450109,-280.01236435,0.00019315,3]
[351951343,1738859450119,-500.0,0.00019315,3]
[351951344,1738859450129,-500.0,0.00019315,3]
[351951345,1738859450139,-500.0,0.00019315,3]
[351951346,1738859450149,-912.68,0.00019315,3]
[351951347,1738859450160,-500.0,0.00019315,3]
[351951348,1738859450170,-500.0,0.00019315,3]
[351951349,1738859450180,-553.94315903,0.00019315,3]
[351951350,1738859450190,-645.15086186,0.00019315,3]
[351951351,1738859450200,-500.0,0.00019315,3]
[351951352,1738859450210,-500.0,0.00019315,3]
[351951353,1738859450220,-500.0,0.00019315,3]
[351951354,1738859450230,-500.0,0.00019315,3]
[351951355,1738859450240,-500.0,0.00019315,3]
[351951356,1738859450250,-1738.07,0.00019315,3]
[351951357,1738859450259,-716.89,0.00019315,3]
[351951358,1738859450269,-500.0,0.00019315,3]
[351951359,1738859450279,-593.9,0.00019315,3]
[351951360,1738859450289,-928.58,0.00019315,3]
[351951361,1738859450299,-536.69,0.00019315,3]
[351951362,1738859450308,-500.0,0.00019315,3]
[351951363,1738859450318,-500.0,0.00019315,3]
[351951364,1738859450328,-500.0,0.00019315,3]
[351951365,1738859450338,-500.0,0.00019315,3]
[351951366,1738859450347,-500.0,0.00019315,3]
[351951367,1738859450356,-781.7,0.00019315,3]
[351951368,1738859450366,-500.0,0.00019315,3]
[351951369,1738859450376,-500.0,0.00019315,3]
[351951370,1738859450385,-872.94,0.00019315,3]
[351951371,1738859450395,-500.0,0.00019315,3]
[351951372,1738859450404,-500.0,0.00019315,3]
[351951373,1738859450414,-500.0,0.00019315,3]
[351951374,1738859450423,-1180.42,0.00019315,3]
[351951375,1738859450432,-500.0,0.00019315,3]
[351951376,1738859450442,-1583.72,0.00019315,3]
[351951377,1738859450452,-626.37,0.00019315,3]
[351951378,1738859450461,-500.0,0.00019315,3]
[351951379,1738859450471,-1095.92,0.00019315,3]
[351951380,1738859450480,-500.0,0.00019315,3]
[351951381,1738859450492,-1245.43,0.00019315,3]
[351951382,1738859450504,-380.16480509,0.00019315,3]
[351951383,1738859450514,-1731.07,0.00019315,3]
[351951384,1738859450524,-500.0,0.00019315,3]
[351951385,1738859450534,-618.11,0.00019315,3]
[351951386,1738859450544,-596.16,0.00019315,3]
[351951387,1738859450554,-500.0,0.00019315,3]
[351951388,1738859450564,-1071.66,0.00019315,3]
[351951389,1738859450578,-500.0,0.00019315,3]
[351951390,1738859450589,-500.0,0.00019315,3]
[351951391,1738859450599,-500.0,0.00019315,3]
[351951392,1738859450785,-500.0,0.00019315,3]
[351951393,1738859450796,-571.79,0.00019315,3]
[351951394,1738859450806,-500.0,0.00019315,3]
[351951395,1738859450816,-500.0,0.00019315,3]
[351951396,1738859450826,-500.0,0.00019315,3]
[351951397,1738859450837,-567.18,0.00019315,3]
[351951398,1738859450847,-501.0,0.00019315,3]
[351951399,1738859450856,-500.0,0.00019315,3]
[351951400,1738859450866,-1485.63,0.00019315,3]
[351951401,1738859450876,-1131.09,0.00019315,3]
[351951402,1738859450886,-725.72,0.00019315,3]
[351951403,1738859450896,-820.08,0.00019315,3]
[351951404,1738859450906,-482.31389799,0.00019315,3]
[351951405,1738859450916,-744.33,0.00019315,3]
[351951406,1738859450927,-1200.0,0.00019315,5]
[351951407,1738859450936,-1038.55,0.00019315,3]
[351951408,1738859450946,-997.71,0.00019315,3]
[351951409,1738859450956,-500.0,0.00019315,3]
[351951410,1738859450966,-500.0,0.00019315,3]
[351951411,1738859450976,-500.0,0.00019315,3]
[351951412,1738859450985,-500.0,0.00019315,3]
[351951413,1738859450995,-500.0,0.00019315,3]
[351951414,1738859451004,-920.08,0.00019315,3]
[351951415,1738859451014,-500.0,0.00019315,3]
[351951416,1738859451023,-500.0,0.00019315,3]
[351951417,1738859451032,-500.0,0.00019315,3]
[351951418,1738859451042,-546.8,0.00019315,3]
[351951419,1738859451052,-802.1,0.00019315,3]
[351951420,1738859451062,-500.0,0.00019315,3]
[351951421,1738859451072,-1062.66,0.00019315,3]
[351951422,1738859451086,-829.39,0.00019315,3]
[351951423,1738859451096,-500.0,0.00019315,3]
[351951424,1738859451106,-500.0,0.00019315,3]
[351951425,1738859451116,-500.0,0.00019315,3]
[351951426,1738859451125,-500.0,0.00019315,3]
[351951427,1738859451134,-781.71,0.00019315,3]
[351951428,1738859451144,-733.94,0.00019315,3]
[351951429,1738859451154,-500.0,0.00019315,3]
[351951430,1738859451164,-977.61,0.00019315,3]
[351951431,1738859451173,-921.15,0.00019315,3]
[351951432,1738859451183,-1215.45,0.00019315,3]
[351951433,1738859451192,-694.69,0.00019315,3]
[351951434,1738859451202,-500.0,0.00019315,3]
[351951435,1738859451211,-500.0,0.00019315,3]
[351951436,1738859451221,-500.0,0.00019315,3]
[351951437,1738859451231,-914.14,0.00019315,3]
[351951438,1738859451240,-500.0,0.00019315,3]
[351951439,1738859451249,-500.0,0.00019315,3]
[351951440,1738859451259,-500.0,0.00019315,3]
[351951441,1738859451268,-861.82,0.00019315,3]
[351951442,1738859451278,-500.0,0.00019315,3]
[351951443,1738859451288,-500.0,0.00019315,3]
[351951444,1738859451298,-500.0,0.00019315,3]
[351951445,1738859451307,-500.0,0.00019315,3]
[351951446,1738859451317,-835.12,0.00019315,3]
[351951447,1738859451330,-500.0,0.00019315,3]
[351951448,1738859451339,-664.56,0.00019315,3]
[351951449,1738859451349,-500.0,0.00019315,3]
[351951450,1738859451359,-627.63,0.00019315,3]
[351951451,1738859451368,-500.0,0.00019315,3]
[351951452,1738859451379,-500.0,0.00019315,3]
[351951453,1738859451390,-500.0,0.00019315,3]
[351951454,1738859451399,-636.89,0.00019315,3]
[351951455,1738859451410,-500.0,0.00019315,3]
[351951456,1738859451419,-500.0,0.00019315,3]
[351951457,1738859451429,-746.71,0.00019315,3]
[351951458,1738859451438,-1881.95,0.00019315,3]
[351951459,1738859451447,-500.0,0.00019315,3]
[351951460,1738859451456,-500.0,0.00019315,3]
[351951461,1738859451466,-728.45,0.00019315,3]
[351951462,1738859451475,-3100.99,0.00019315,3]
[351951463,1738859451484,-500.0,0.00019315,3]
[351951464,1738859451495,-500.0,0.00019315,3]
[351951465,1738859451509,-1266.32,0.00019315,3]
[351951466,1738859451518,-501.42,0.00019315,3]
[351951467,1738859451528,-976.76,0.00019315,3]
[351951468,1738859451539,-815.33,0.00019315,3]
[351951469,1738859451548,-612.55,0.00019315,3]
[351951470,1738859451559,-500.0,0.00019315,3]
[351951471,1738859451568,-1251.86,0.00019315,3]
[351951472,1738859451580,-805.52,0.00019315,3]
[351951473,1738859451590,-542.61422892,0.00019315,3]
[351951474,1738859451601,-500.0,0.00019315,3]
[351951475,1738859451614,-1527.02,0.00019315,3]
[351951476,1738859451625,-500.0,0.00019315,3]
[351951477,1738859451635,-500.0,0.00019315,3]
[351951478,1738859451644,-1214.58,0.00019315,3]
[351951479,1738859451654,-500.0,0.00019315,3]
[351951480,1738859451663,-500.0,0.00019315,3]
[351951481,1738859451674,-725.08,0.00019315,3]
[351951482,1738859451684,-758.66,0.00019315,3]
[351951483,1738859451694,-939.65,0.00019315,3]
[351951484,1738859451703,-633.87,0.00019315,3]
[351951485,1738859451712,-528.24,0.00019315,3]
[351951486,1738859451722,-500.0,0.00019315,3]
[351951487,1738859451732,-704.31,0.00019315,3]
[351951488,1738859451742,-1362.1,0.00019315,3]
[351951489,1738859451752,-601.9,0.00019315,3]
[351951490,1738859451761,-500.0,0.00019315,3]
[351951491,1738859451771,-961.89,0.00019315,3]
[351951492,1738859451781,-1055.11,0.00019315,3]
[351951493,1738859451791,-1033.09,0.00019315,3]
[351951494,1738859451801,-500.0,0.00019315,3]
[351951495,1738859451810,-896.21,0.00019315,3]
[351951496,1738859451820,-500.0,0.00019315,3]
[351951497,1738859451831,-848.6,0.00019315,3]
[351951498,1738859451840,-501.12085478,0.00019315,3]
[351951499,1738859451849,-957.85,0.00019315,3]
[351951500,1738859451859,-500.0,0.00019315,3]
[351951501,1738859451868,-1133.7,0.00019315,3]
[351951502,1738859451878,-500.0,0.00019315,3]
[351951503,1738859451888,-500.0,0.00019315,3]
[351951504,1738859451898,-500.0,0.00019315,3]
[351951505,1738859451908,-655.65,0.00019315,3]
[351951506,1738859451919,-500.0,0.00019315,3]
[351951507,1738859451929,-1198.99,0.00019315,3]
[351951508,1738859451938,-500.0,0.00019315,3]
[351951509,1738859451947,-1095.89,0.00019315,3]
[351951510,1738859451957,-733.0,0.00019315,3]
[351951511,1738859451967,-500.0,0.00019315,3]
[351951512,1738859451977,-880.56,0.00019315,3]
[351951513,1738859451987,-568.21,0.00019315,3]
[351951514,1738859451997,-500.0,0.00019315,3]
[351951515,1738859452007,-249.74121133,0.00019315,3]
[351951516,1738859452016,-669.52,0.00019315,3]
[351951517,1738859452026,-500.0,0.00019315,3]
[351951518,1738859452035,-1271.47,0.00019315,3]
[351951519,1738859452046,-500.0,0.00019315,3]
[351951520,1738859452055,-621.18,0.00019315,3]
[351951521,1738859452065,-500.0,0.00019315,3]
[351951522,1738859452075,-500.0,0.00019315,3]
[351951523,1738859452087,-500.0,0.00019315,3]
[351951524,1738859452097,-500.0,0.00019315,3]
[351951525,1738859452107,-500.0,0.00019315,3]
[351951526,1738859452116,-500.0,0.00019315,3]
[351951527,1738859452126,-1161.95,0.00019315,3]
[351951528,1738859452135,-562.43,0.00019315,3]
[351951529,1738859452145,-1428.32,0.00019315,3]
[351951530,1738859452154,-786.81,0.00019315,3]
[351951531,1738859452163,-1157.3,0.00019315,3]
[351951532,1738859452172,-813.39,0.00019315,3]
[351951533,1738859452182,-888.81,0.00019315,3]
[351951534,1738859452192,-500.0,0.00019315,3]
[351951535,1738859452201,-500.0,0.00019315,3]
[351951536,1738859452210,-500.0,0.00019315,3]
[351951537,1738859452219,-629.32,0.00019315,3]
[351951538,1738859452229,-500.0,0.00019315,3]
[351951539,1738859452238,-500.0,0.00019315,3]
[351951540,1738859452247,-776.83,0.00019315,3]
[351951541,1738859452257,-1126.26,0.00019315,3]
[351951542,1738859452266,-895.6,0.00019315,3]
[351951543,1738859452276,-665.98,0.00019315,3]
[351951544,1738859452285,-500.0,0.00019315,3]
[351951545,1738859452294,-500.0,0.00019315,3]
[351951546,1738859452304,-547.66,0.00019315,3]
[351951547,1738859452314,-500.0,0.00019315,3]
[351951548,1738859452323,-1396.45,0.00019315,3]
[351951549,1738859452334,-983.22,0.00019315,3]
[351951550,1738859452343,-704.72,0.00019315,3]
[351951551,1738859452353,-620.79,0.00019315,3]
[351951552,1738859452363,-500.0,0.00019315,3]
[351951553,1738859452372,-676.27,0.00019315,3]
[351951554,1738859452382,-1850.4,0.00019315,2]
[351951555,1738859452391,-500.0,0.00019315,3]
[351951556,1738859452400,-1335.90106,0.00019315,2]
[351951557,1738859452410,-1488.93,0.00019315,3]
[351951558,1738859452419,-1095.19,0.00019315,3]
[351951559,1738859452428,-816.62,0.00019315,3]
[351951560,1738859452438,-500.0,0.00019315,3]
[351951561,1738859452447,-1483.16,0.00019315,3]
[351951562,1738859452456,-875.74,0.00019315,3]
[351951563,1738859452466,-1421.56,0.00019315,3]
[351951564,1738859452475,-1025.41,0.00019315,3]
[351951565,1738859452485,-1334.05,0.00019315,3]
[351951566,1738859452495,-974.43,0.00019315,3]
[351951567,1738859452509,-1490.28,0.00019315,3]
[351951568,1738859452518,-684.19,0.00019315,3]
[351951569,1738859452527,-500.0,0.00019315,3]
[351951570,1738859452537,-500.0,0.00019315,3]
[351951571,1738859452547,-500.0,0.00019315,3]
[351951572,1738859452555,-3022.85,0.00019315,3]
[351951573,1738859452564,-581.98,0.00019315,3]
[351951574,1738859452574,-1515.87,0.00019315,3]
[351951575,1738859452585,-1090.5,0.00019315,3]
[351951576,1738859452594,-500.0,0.00019315,3]
[351951577,1738859452603,-1764.95,0.00019315,3]
[351951578,1738859452612,-1234.05,0.00019315,3]
[351951579,1738859452622,-614.34071164,0.00019315,3]
[351951580,1738859452631,-668.56,0.00019315,3]
[351951581,1738859452641,-816.76,0.00019315,3]
[351951582,1738859452651,-500.0,0.00019315,3]
[351951583,1738859452660,-964.86,0.00019315,3]
[351951584,1738859452670,-978.7,0.00019315,3]
[351951585,1738859452679,-1674.88,0.00019315,3]
[351951586,1738859452688,-500.0,0.00019315,3]
[351951587,1738859452698,-500.0,0.00019315,3]
[351951588,1738859452707,-1374.73,0.00019315,3]
[351951589,1738859452719,-808.77,0.00019315,3]
[351951590,1738859452735,-2484.78,0.00019315,3]
[351951591,1738859452745,-690.31,0.00019315,3]
[351951592,1738859452754,-1252.47,0.00019315,3]
[351951593,1738859452764,-1520.16,0.00019315,3]
[351951594,1738859452774,-676.95,0.00019315,3]
[351951595,1738859452784,-574.55,0.00019315,3]
[351951596,1738859452793,-508.56,0.00019315,3]
[351951597,1738859452803,-1654.65,0.00019315,3]
[351951598,1738859452812,-1889.68,0.00019315,3]
[351951599,1738859452822,-500.0,0.00019315,3]
[351951600,1738859452833,-500.0,0.00019315,3]
[351951601,1738859452842,-1938.72,0.00019315,3]
[351951602,1738859452851,-500.0,0.00019315,3]
[351951603,1738859452861,-1436.62,0.00019315,3]
[351951604,1738859452871,-932.56,0.00019315,3]
[351951605,1738859452880,-500.0,0.00019315,3]
[351951606,1738859452890,-2075.99,0.00019315,3]
[351951607,1738859452900,-544.05,0.00019315,3]
[351951608,1738859452910,-890.11,0.00019315,3]
[351951609,1738859452920,-563.32,0.00019315,3]
[351951610,1738859452930,-500.0,0.00019315,3]
[351951611,1738859452940,-812.99,0.00019315,3]
[351951612,1738859452949,-1298.3,0.00019315,3]
[351951613,1738859452960,-500.0,0.00019315,3]
[351951614,1738859452971,-1206.59,0.00019315,3]
[351951615,1738859452981,-500.0,0.00019315,3]
[351951616,1738859452990,-500.0,0.00019315,3]
[351951617,1738859453000,-782.47,0.00019315,3]
[351951618,1738859453010,-2159.33,0.00019315,3]
[351951619,1738859453021,-1257.05,0.00019315,3]
[351951620,1738859453031,-1474.21,0.00019315,3]
[351951621,1738859453040,-1385.34,0.00019315,3]
[351951622,1738859453049,-1048.46,0.00019315,3]
[351951623,1738859453059,-681.94,0.00019315,3]
[351951624,1738859453069,-723.68,0.00019315,3]
[351951625,1738859453078,-805.81,0.00019315,3]
[351951626,1738859453095,-500.0,0.00019315,3]
[351951627,1738859453107,-500.0,0.00019315,3]
[351951628,1738859453182,-500.0,0.00019315,3]
[351951629,1738859453192,-500.0,0.00019315,3]
[351951630,1738859453202,-2189.95,0.00019315,3]
[351951631,1738859453211,-1118.0,0.00019315,3]
[351951632,1738859453220,-500.0,0.00019315,3]
[351951633,1738859453230,-761.44,0.00019315,3]
[351951634,1738859453239,-2281.39,0.00019315,3]
[351951635,1738859453249,-794.79,0.00019315,3]
[351951636,1738859453258,-1933.42,0.00019315,3]
[351951637,1738859453268,-1564.18,0.00019315,3]
[351951638,1738859453277,-1740.16,0.00019315,3]
[351951639,1738859453287,-1608.25,0.00019315,3]
[351951640,1738859453296,-595.7,0.00019315,3]
[351951641,1738859453305,-500.0,0.00019315,3]
[351951642,1738859453317,-500.0,0.00019315,3]
[351951643,1738859453327,-500.0,0.00019315,3]
[351951644,1738859453339,-2013.32,0.00019315,3]
[351951645,1738859453348,-1838.73,0.00019315,3]
[351951646,1738859453358,-814.17,0.00019315,3]
[351951647,1738859453367,-1250.99,0.00019315,3]
[351951648,1738859453376,-1594.58,0.00019315,3]
[351951649,1738859453386,-1472.26,0.00019315,3]
[351951650,1738859453395,-504.52,0.00019315,3]
[351951651,1738859453404,-500.0,0.00019315,3]
[351951652,1738859453414,-2036.39,0.00019315,3]
[351951653,1738859453424,-1082.34,0.00019315,3]
[351951654,1738859453433,-1794.21,0.00019315,3]
[351951655,1738859453443,-500.0,0.00019315,3]
[351951656,1738859453452,-2212.48,0.00019315,3]
[351951657,1738859453462,-1000.05,0.00019315,3]
[351951658,1738859453472,-500.0,0.00019315,3]
[351951659,1738859453481,-1982.27,0.00019315,3]
[351951660,1738859453491,-150.0,0.00019315,2]
[351951661,1738859453503,-547.36,0.00019315,3]
[351951662,1738859453513,-500.0,0.00019315,3]
[351951663,1738859453523,-2651.0,0.00019315,3]
[351951664,1738859453534,-2169.81,0.00019315,3]
[351951665,1738859453543,-500.0,0.00019315,3]
[351951666,1738859453553,-3676.92,0.00019315,3]
[351951667,1738859453563,-1987.59,0.00019315,3]
[351951668,1738859453572,-1418.01,0.00019315,3]
[351951669,1738859453581,-3759.67,0.00019315,3]
[351951670,1738859453593,-1325.12,0.00019315,3]
[351951671,1738859453602,-1209.77,0.00019315,3]
[351951672,1738859453612,-1003.89,0.00019315,3]
[351951673,1738859453621,-1867.22,0.00019315,3]
[351951674,1738859453630,-1707.3,0.00019315,3]
[351951675,1738859453640,-737.66,0.00019315,3]
[351951676,1738859453650,-1714.32,0.00019315,3]
[351951677,1738859453659,-2211.47,0.00019315,3]
[351951678,1738859453668,-2383.64,0.00019315,3]
[351951679,1738859453678,-3867.71,0.00019315,3]
[351951680,1738859453687,-500.0,0.00019315,3]
[351951681,1738859453696,-910.29,0.00019315,3]
[351951682,1738859453706,-2979.92,0.00019315,3]
[351951683,1738859453715,-1813.13,0.00019315,3]
[351951684,1738859453724,-1520.95,0.00019315,3]
[351951685,1738859453733,-500.0,0.00019315,3]
[351951686,1738859453743,-1070.88,0.00019315,3]
[351951687,1738859453753,-944.96,0.00019315,3]
[351951688,1738859453763,-2341.93,0.00019315,3]
[351951689,1738859453772,-1001.29,0.00019315,3]
[351951690,1738859453783,-500.0,0.00019315,3]
[351951691,1738859453792,-7025.56,0.00019315,3]
[351951692,1738859453801,-500.0,0.00019315,3]
[351951693,1738859453811,-3800.02,0.00019315,3]
[351951694,1738859453820,-1580.19,0.00019315,3]
[351951695,1738859453829,-500.0,0.00019315,3]
[351951696,1738859453843,-557.56,0.00019315,3]
[351951697,1738859453853,-2114.38,0.00019315,3]
[351951698,1738859453866,-537.35,0.00019315,3]
[351951699,1738859453876,-500.0,0.00019315,3]
[351951700,1738859453885,-1278.48,0.00019315,3]
[351951701,1738859453895,-2047.65,0.00019315,3]
[351951702,1738859453905,-3151.03,0.00019315,3]
[351951703,1738859453915,-500.0,0.00019315,3]
[351951704,1738859453924,-500.0,0.00019315,3]
[351951705,1738859453933,-1608.0,0.00019315,3]
[351951706,1738859453943,-500.0,0.00019315,3]
[351951707,1738859453952,-910.08,0.00019315,3]
[351951708,1738859453961,-2786.69,0.00019315,3]
[351951709,1738859453970,-3611.73,0.00019315,3]
[351951710,1738859453980,-2127.85,0.00019315,3]
[351951711,1738859453989,-1812.48,0.00019315,3]
[351951712,1738859453998,-500.0,0.00019315,3]
[351951713,1738859454007,-3376.65,0.00019315,3]
[351951714,1738859454016,-2087.88,0.00019315,3]
[351951715,1738859454026,-3136.7,0.00019315,3]
[351951716,1738859454035,-584.99,0.00019315,3]
[351951717,1738859454046,-2643.85,0.00019315,3]
[351951718,1738859454055,-1531.86,0.00019315,3]
[351951719,1738859454065,-500.0,0.00019315,3]
[351951720,1738859454074,-500.0,0.00019315,3]
[351951721,1738859454086,-500.0,0.00019315,3]
[351951722,1738859454096,-771.7,0.00019315,3]
[351951723,1738859454105,-1119.67,0.00019315,3]
[351951724,1738859454114,-1997.29,0.00019315,3]
[351951725,1738859454124,-801.59,0.00019315,3]
[351951726,1738859454133,-500.0,0.00019315,3]
[351951727,1738859454143,-509.43,0.00019315,3]
[351951728,1738859454152,-4454.3,0.00019315,3]
[351951729,1738859454162,-2508.19,0.00019315,3]
[351951730,1738859454172,-921.93,0.00019315,3]
[351951731,1738859454181,-2252.27,0.00019315,3]
[351951732,1738859454191,-1506.19,0.00019315,3]
[351951733,1738859454200,-500.0,0.00019315,3]
[351951734,1738859454210,-549.57,0.00019315,3]
[351951735,1738859454220,-3741.69,0.00019315,3]
[351951736,1738859454229,-604.81,0.00019315,3]
[351951737,1738859454239,-651.33,0.00019315,3]
[351951738,1738859454248,-500.0,0.00019315,3]
[351951739,1738859454257,-1470.46,0.00019315,3]
[351951740,1738859454267,-739.64,0.00019315,3]
[351951741,1738859454276,-2385.66,0.00019315,3]
[351951742,1738859454287,-1808.68,0.00019315,3]
[351951743,1738859454297,-2039.7,0.00019315,3]
[351951744,1738859454306,-1592.44,0.00019315,3]
[351951745,1738859454317,-898.23,0.00019315,3]
[351951746,1738859454326,-1803.78,0.00019315,3]
[351951747,1738859454337,-1173.8,0.00019315,3]
[351951748,1738859454346,-798.24,0.00019315,3]
[351951749,1738859454356,-1904.48,0.00019315,3]
[351951750,1738859454366,-500.0,0.00019315,3]
[351951751,1738859454375,-638.5,0.00019315,3]
[351951752,1738859454385,-2776.48,0.00019315,3]
[351951753,1738859454394,-744.29,0.00019315,3]
[351951754,1738859454403,-500.0,0.00019315,3]
[351951755,1738859454413,-2043.7,0.00019315,3]
[351951756,1738859454422,-1021.47,0.00019315,3]
[351951757,1738859454432,-1589.04,0.00019315,3]
[351951758,1738859454441,-753.25,0.00019315,3]
[351951759,1738859454450,-500.0,0.00019315,3]
[351951760,1738859454460,-2003.9,0.00019315,3]
[351951761,1738859454469,-967.67,0.00019315,3]
[351951762,1738859454478,-623.17,0.00019315,3]
[351951763,1738859454489,-871.33,0.00019315,3]
[351951764,1738859454509,-500.0,0.00019315,3]
[351951765,1738859454526,-4639.69,0.00019315,3]
[351951766,1738859454536,-500.0,0.00019315,3]
[351951767,1738859454545,-3441.14,0.00019315,3]
[351951768,1738859454555,-665.34,0.00019315,3]
[351951769,1738859454564,-500.0,0.00019315,3]
[351951770,1738859454573,-2365.63,0.00019315,3]
[351951771,1738859454585,-1616.55,0.00019315,3]
[351951772,1738859454596,-500.0,0.00019315,3]
[351951773,1738859454605,-1190.26,0.00019315,3]
[351951774,1738859454615,-1884.39,0.00019315,3]
[351951775,1738859454624,-1202.15,0.00019315,2]
[351951776,1738859454634,-500.0,0.00019315,3]
[351951777,1738859454644,-2080.1,0.00019315,3]
[351951778,1738859454654,-2248.12,0.00019315,3]
[351951779,1738859454664,-1721.01,0.00019315,3]
[351951780,1738859454674,-500.0,0.00019315,3]
[351951781,1738859454684,-1481.87,0.00019315,3]
[351951782,1738859454694,-957.01,0.00019315,3]
[351951783,1738859454703,-1117.8,0.00019315,3]
[351951784,1738859454713,-2168.42,0.00019315,3]
[351951785,1738859454723,-1392.78,0.00019315,3]
[351951786,1738859454732,-500.0,0.00019315,3]
[351951787,1738859454743,-500.0,0.00019315,3]
[351951788,1738859454753,-1253.66,0.00019315,3]
[351951789,1738859454762,-1415.2,0.00019315,3]
[351951790,1738859454774,-371.36,0.00019315,2]
[351951791,1738859454783,-1741.6654003,0.00019316,2]
[351951792,1738859454793,-1118.5026169,0.00019316,2]
[351951793,1738859454803,-150.0,0.00019319,2]
[351951794,1738859454812,-49431.99830263,0.00019324,2]
[351951795,1738859454821,-150.0,0.00019338,2]
[351951796,1738859454831,-150.82206092,0.0001934,2]
[351951797,1738859454843,-500.0,0.00019342,3]
[351951798,1738859454853,-2651.0,0.00019342,3]
[351951799,1738859454862,-295.03731476,0.00019342,5]
[351951800,1738859454872,-3813.95818789,0.00019352,2]
[351951801,1738859454882,-1000.0,0.00019368,2]
[351951802,1738859454892,-500.0,0.0001937,3]
[351951803,1738859454901,-2651.0,0.0001937,3]
[351951804,1738859454911,-692.05468298,0.0001937,5]
[351951805,1738859454921,-150.0,0.00019391,2]
[351951806,1738859454930,-951.16411195,0.00019397,3]
[351951807,1738859454940,-2651.0,0.00019397,3]
[351951808,1738859454950,-150.0,0.00019405,2]
[351951809,1738859454959,-150.0,0.00019413,2]
[351951810,1738859454969,-234.49,0.0001942,2]
[351951811,1738859454978,-2651.0,0.00019425,3]
[351951812,1738859454988,-295.03731476,0.00019425,5]
[351951813,1738859454998,-201.0,0.0001943,2]
[351951814,1738859455008,-204.0,0.0001943,2]
[351951815,1738859455018,-208.0,0.0001943,2]
[351951816,1738859455028,-205.0,0.0001943,2]
[351951817,1738859455038,-150.0,0.00019435,2]
[351951818,1738859455048,-1114.9322447,0.00019436,5]
[351951819,1738859455058,-150.0,0.00019436,2]
[351951820,1738859455068,-11975.25,0.00019437,7]
[351951821,1738859455077,-11975.25,0.00019437,7]
[351951822,1738859455090,-963.0298945,0.00019439,2]
[351951823,1738859455099,-1130.151398,0.00019439,2]
[351951824,1738859455109,-3512.1545695,0.00019439,2]
[351951825,1738859455118,-283.4055253,0.00019439,2]
[351951826,1738859455128,-4279.7557523,0.00019439,2]